[Event "Late-Titled-Tuesday-Blitz-March-05-2024"]
[Site "Chess.com"]
[Date "2024.03.05"]
[Round "7"]
[White "NCchamp"]
[Black "Eeleyah"]
[Result "1/2-1/2"]
[WhiteElo "2339"]
[BlackElo "2459"]
[TimeControl "180+1"]
[EndTime "15:16:07 PST"]
[Termination "Game drawn by repetition"]

1. d4 {[%clk 0:02:55.6]} 1... d5 {[%clk 0:02:55.8]} 2. c4 {[%clk 0:02:54.3]}
2... e6 {[%clk 0:02:56.4]} 3. Nc3 {[%clk 0:02:51.3]} 3... Nf6 {[%clk 0:02:56.3]}
4. cxd5 {[%clk 0:02:50.9]} 4... exd5 {[%clk 0:02:57.2]} 5. Bg5 {[%clk
0:02:51.3]} 5... Nbd7 {[%clk 0:02:57.7]} 6. e3 {[%clk 0:02:42]} 6... Bb4 {[%clk
0:02:58.1]} 7. Qb3 {[%clk 0:02:37.4]} 7... c5 {[%clk 0:02:52.4]} 8. a3 {[%clk
0:02:34.1]} 8... Bxc3+ {[%clk 0:02:35.1]} 9. Qxc3 {[%clk 0:02:33.6]} 9... c4
{[%clk 0:02:27.6]} 10. Be2 {[%clk 0:02:27.1]} 10... h6 {[%clk 0:02:18.5]} 11.
Bxf6 {[%clk 0:02:25.1]} 11... Nxf6 {[%clk 0:02:17.9]} 12. Bf3 {[%clk 0:02:25.6]}
12... Be6 {[%clk 0:02:16]} 13. Ne2 {[%clk 0:02:25.2]} 13... O-O {[%clk 0:02:15]}
14. O-O {[%clk 0:02:21.1]} 14... b5 {[%clk 0:02:12.7]} 15. a4 {[%clk 0:02:16.5]}
15... a6 {[%clk 0:02:12.5]} 16. axb5 {[%clk 0:02:16.1]} 16... axb5 {[%clk
0:02:13.4]} 17. Qb4 {[%clk 0:02:16.4]} 17... Bd7 {[%clk 0:01:39.1]} 18. Nc3
{[%clk 0:02:12.8]} 18... Bc6 {[%clk 0:01:39.4]} 19. Qc5 {[%clk 0:02:01.5]} 19...
Qd7 {[%clk 0:01:28.3]} 20. Rfb1 {[%clk 0:01:15.8]} 20... Rfb8 {[%clk 0:00:54.6]}
21. Qb4 {[%clk 0:01:08]} 21... g5 {[%clk 0:00:36.3]} 22. h3 {[%clk 0:01:06.7]}
22... h5 {[%clk 0:00:35.7]} 23. Bd1 {[%clk 0:00:59.9]} 23... Kg7 {[%clk
0:00:31.4]} 24. Kh2 {[%clk 0:00:55.7]} 24... Qc7+ {[%clk 0:00:30.4]} 25. Kg1
{[%clk 0:00:54.8]} 25... g4 {[%clk 0:00:30.2]} 26. h4 {[%clk 0:00:47.5]} 26...
g3 {[%clk 0:00:30.4]} 27. Bf3 {[%clk 0:00:39.5]} 27... gxf2+ {[%clk 0:00:29.9]}
28. Kxf2 {[%clk 0:00:40.4]} 28... Rxa1 {[%clk 0:00:24.9]} 29. Rxa1 {[%clk
0:00:40.5]} 29... Re8 {[%clk 0:00:25.6]} 30. Ne2 {[%clk 0:00:38.9]} 30... Qd7
{[%clk 0:00:20.5]} 31. Nf4 {[%clk 0:00:31]} 31... Qf5 {[%clk 0:00:19.7]} 32. Qd6
{[%clk 0:00:27.8]} 32... Re6 {[%clk 0:00:09.8]} 33. Qc7 {[%clk 0:00:25.7]} 33...
Qc2+ {[%clk 0:00:02.6]} 34. Ne2 {[%clk 0:00:26.1]} 34... Qd3 {[%clk 0:00:02.4]}
35. Qf4 {[%clk 0:00:26]} 35... Ne4+ {[%clk 0:00:02.4]} 36. Bxe4 {[%clk 0:00:26]}
36... dxe4 {[%clk 0:00:02.2]} 37. Qg5+ {[%clk 0:00:24.5]} 37... Rg6 {[%clk
0:00:03]} 38. Qe5+ {[%clk 0:00:24.5]} 38... Kh7 {[%clk 0:00:03.6]} 39. Qxh5+
{[%clk 0:00:23]} 39... Kg7 {[%clk 0:00:03.8]} 40. Qe5+ {[%clk 0:00:23]} 40...
Kh7 {[%clk 0:00:04]} 41. Qh5+ {[%clk 0:00:18.7]} 41... Kg7 {[%clk 0:00:03.9]}
42. Ra8 {[%clk 0:00:18.7]} 42... Bxa8 {[%clk 0:00:03.6]} 43. Qe5+ {[%clk
0:00:19.2]} 43... Kh7 {[%clk 0:00:03.8]} 44. Qh5+ {[%clk 0:00:19.5]} 44... Kg8
{[%clk 0:00:04.2]} 45. Qe5 {[%clk 0:00:17.2]} 45... Bc6 {[%clk 0:00:04.5]} 46.
h5 {[%clk 0:00:16.5]} 46... Re6 {[%clk 0:00:04.3]} 47. Qg5+ {[%clk 0:00:16.6]}
47... Kf8 {[%clk 0:00:05]} 48. h6 {[%clk 0:00:17]} 48... Rg6 {[%clk 0:00:04.3]}
49. Qf4 {[%clk 0:00:16]} 49... c3 {[%clk 0:00:03.8]} 50. h7 {[%clk 0:00:15.4]}
50... Kg7 {[%clk 0:00:04.3]} 51. Qe5+ {[%clk 0:00:15.3]} 51... f6 {[%clk
0:00:04.9]} 52. Qe7+ {[%clk 0:00:13.6]} 52... Kh8 {[%clk 0:00:05.4]} 53. Qf7
{[%clk 0:00:13.4]} 53... Rg7 {[%clk 0:00:05.2]} 54. Qxf6 {[%clk 0:00:12.4]}
54... c2 {[%clk 0:00:05.5]} 55. Qxc6 {[%clk 0:00:10.8]} 55... Qd2 {[%clk
0:00:05.2]} 56. Qe8+ {[%clk 0:00:10]} 56... Kxh7 {[%clk 0:00:05.4]} 57. Qh5+
{[%clk 0:00:10.4]} 57... Kg8 {[%clk 0:00:05.9]} 58. Qe8+ {[%clk 0:00:10.7]}
58... Kh7 {[%clk 0:00:06.5]} 59. Qh5+ {[%clk 0:00:11]} 59... Kg8 {[%clk
0:00:06]} 60. Qe8+ {[%clk 0:00:10.4]} 60... Kh7 {[%clk 0:00:05.4]} 1/2-1/2

[Event "Late-Titled-Tuesday-Blitz-March-05-2024"]
[Site "Chess.com"]
[Date "2024.03.05"]
[Round "7"]
[White "terrortoast"]
[Black "trriinu"]
[Result "0-1"]
[WhiteElo "2507"]
[BlackElo "2281"]
[TimeControl "180+1"]
[EndTime "15:16:14 PST"]
[Termination "trriinu won by resignation"]

1. d4 {[%clk 0:01:43]} 1... g6 {[%clk 0:02:58.8]} 2. e4 {[%clk 0:01:43]} 2...
Bg7 {[%clk 0:02:59.3]} 3. Nc3 {[%clk 0:01:43.4]} 3... c6 {[%clk 0:02:58.8]} 4.
h3 {[%clk 0:01:42.7]} 4... d6 {[%clk 0:02:57.3]} 5. Nf3 {[%clk 0:01:42.4]} 5...
Nd7 {[%clk 0:02:57.5]} 6. a4 {[%clk 0:01:42.4]} 6... e5 {[%clk 0:02:46.4]} 7.
Be3 {[%clk 0:01:37.8]} 7... Qc7 {[%clk 0:02:38]} 8. Be2 {[%clk 0:01:35.4]} 8...
Ne7 {[%clk 0:02:37.3]} 9. O-O {[%clk 0:01:35.3]} 9... O-O {[%clk 0:02:37.3]} 10.
dxe5 {[%clk 0:01:34.4]} 10... dxe5 {[%clk 0:02:35.7]} 11. Bc4 {[%clk 0:01:33]}
11... Kh8 {[%clk 0:02:24.9]} 12. Ng5 {[%clk 0:01:21.4]} 12... Kg8 {[%clk
0:02:24.1]} 13. Qf3 {[%clk 0:01:09.4]} 13... Nf6 {[%clk 0:02:14.6]} 14. Qg3
{[%clk 0:01:02.1]} 14... h6 {[%clk 0:02:03.7]} 15. Nf3 {[%clk 0:00:36.2]} 15...
Nh5 {[%clk 0:01:51.3]} 16. Qh2 {[%clk 0:00:36]} 16... Nf4 {[%clk 0:01:50]} 17.
Rad1 {[%clk 0:00:32.3]} 17... b6 {[%clk 0:01:43.9]} 18. Rfe1 {[%clk 0:00:23.9]}
18... Kh7 {[%clk 0:01:43.4]} 19. Bxf4 {[%clk 0:00:22.8]} 19... exf4 {[%clk
0:01:43.1]} 20. e5 {[%clk 0:00:23.5]} 20... Bf5 {[%clk 0:01:38.5]} 21. Qxf4
{[%clk 0:00:22.9]} 21... Bxc2 {[%clk 0:01:38.5]} 22. Rd2 {[%clk 0:00:22.9]}
22... Bf5 {[%clk 0:01:36.1]} 23. Red1 {[%clk 0:00:21.6]} 23... g5 {[%clk
0:01:29.6]} 24. Qe3 {[%clk 0:00:19.7]} 24... Ng6 {[%clk 0:01:27]} 25. Rd6 {[%clk
0:00:09.8]} 25... Rae8 {[%clk 0:01:24]} 26. Bd3 {[%clk 0:00:09.8]} 26... Bxe5
{[%clk 0:00:53.4]} 27. Bxf5 {[%clk 0:00:04.3]} 27... Bxd6 {[%clk 0:00:47.2]} 28.
Qd3 {[%clk 0:00:04.6]} 28... Bc5 {[%clk 0:00:27.6]} 29. Ne4 {[%clk 0:00:03.7]}
29... Rd8 {[%clk 0:00:26.4]} 30. Qc2 {[%clk 0:00:03.9]} 30... Rxd1+ {[%clk
0:00:25.1]} 31. Qxd1 {[%clk 0:00:04.8]} 31... Qf4 {[%clk 0:00:21.2]} 32. Qc2
{[%clk 0:00:03.7]} 32... Rd8 {[%clk 0:00:12.6]} 33. Nxc5 {[%clk 0:00:02.1]}
33... bxc5 {[%clk 0:00:09.4]} 34. Be4 {[%clk 0:00:02.3]} 34... c4 {[%clk
0:00:05.6]} 35. g3 {[%clk 0:00:02.3]} 35... Qd6 {[%clk 0:00:04.8]} 36. Qxc4
{[%clk 0:00:02.6]} 36... Qd1+ {[%clk 0:00:04.4]} 37. Kg2 {[%clk 0:00:02.9]}
37... Qd6 {[%clk 0:00:02.6]} 38. Qxf7+ {[%clk 0:00:02.6]} 38... Kh8 {[%clk
0:00:02.2]} 39. Bxg6 {[%clk 0:00:03.5]} 39... Rd7 {[%clk 0:00:02]} 40. Qe8+
{[%clk 0:00:03.6]} 40... Kg7 {[%clk 0:00:02.6]} 41. Ne5 {[%clk 0:00:03.3]} 41...
Re7 {[%clk 0:00:02.5]} 42. Qc8 {[%clk 0:00:02.6]} 42... Qxe5 {[%clk 0:00:02.1]}
43. Bf5 {[%clk 0:00:03.1]} 43... Qd5+ {[%clk 0:00:02.3]} 44. Kh2 {[%clk
0:00:03.1]} 44... Qd6 {[%clk 0:00:02.1]} 45. Kg2 {[%clk 0:00:03.1]} 45... Qd5+
{[%clk 0:00:02.2]} 46. Kh2 {[%clk 0:00:03.7]} 46... Qe5 {[%clk 0:00:02.5]} 47.
Kg2 {[%clk 0:00:03.7]} 47... Qd6 {[%clk 0:00:02.8]} 48. Bg4 {[%clk 0:00:03]}
48... Rf7 {[%clk 0:00:02.6]} 49. Qe8 {[%clk 0:00:02.7]} 49... Qd5+ {[%clk
0:00:02.6]} 50. Kh2 {[%clk 0:00:03]} 50... Qd6 {[%clk 0:00:02.8]} 51. Qe2 {[%clk
0:00:02.8]} 51... Qf6 {[%clk 0:00:02.9]} 52. Kg2 {[%clk 0:00:03.1]} 52... Re7
{[%clk 0:00:03]} 53. Qd1 {[%clk 0:00:03.2]} 53... Qe5 {[%clk 0:00:02.8]} 54. Qc2
{[%clk 0:00:03.3]} 54... Qe4+ {[%clk 0:00:03.2]} 55. Qxe4 {[%clk 0:00:03.6]}
55... Rxe4 {[%clk 0:00:04.1]} 56. Bf3 {[%clk 0:00:04.2]} 56... Rxa4 {[%clk
0:00:04.4]} 57. Bxc6 {[%clk 0:00:04.5]} 57... Rb4 {[%clk 0:00:05]} 58. Kf3
{[%clk 0:00:03.6]} 58... Rxb2 {[%clk 0:00:05.4]} 59. Ke3 {[%clk 0:00:04.2]}
59... Kf6 {[%clk 0:00:05.9]} 60. f4 {[%clk 0:00:02.8]} 60... gxf4+ {[%clk
0:00:06.1]} 61. gxf4 {[%clk 0:00:03]} 61... Rb3+ {[%clk 0:00:06.7]} 62. Ke4
{[%clk 0:00:02.9]} 62... Rxh3 {[%clk 0:00:07.2]} 63. Bb5 {[%clk 0:00:02.3]}
63... Rb3 {[%clk 0:00:06.9]} 64. Bd3 {[%clk 0:00:02]} 64... Rxd3 {[%clk
0:00:06.2]} 65. Kxd3 {[%clk 0:00:02.3]} 65... Kf5 {[%clk 0:00:06.8]} 66. Ke3
{[%clk 0:00:02.8]} 66... a5 {[%clk 0:00:06.8]} 67. Kd4 {[%clk 0:00:02.7]} 67...
Kxf4 {[%clk 0:00:06.4]} 68. Kc4 {[%clk 0:00:03.2]} 68... h5 {[%clk 0:00:07.1]}
69. Kb5 {[%clk 0:00:03.6]} 69... h4 {[%clk 0:00:07.9]} 70. Kxa5 {[%clk
0:00:04.5]} 70... h3 {[%clk 0:00:08.5]} 0-1

[Event "Late-Titled-Tuesday-Blitz-March-05-2024"]
[Site "Chess.com"]
[Date "2024.03.05"]
[Round "7"]
[White "Yurovskykh_Oleksandr"]
[Black "Sjakkerntobi"]
[Result "1-0"]
[WhiteElo "2650"]
[BlackElo "2485"]
[TimeControl "180+1"]
[EndTime "15:16:27 PST"]
[Termination "Yurovskykh_Oleksandr won by resignation"]

1. d4 {[%clk 0:02:59.8]} 1... Nf6 {[%clk 0:02:58.4]} 2. Nf3 {[%clk 0:03:00.1]}
2... e6 {[%clk 0:02:58.7]} 3. Bf4 {[%clk 0:02:59.8]} 3... d5 {[%clk 0:02:58.3]}
4. e3 {[%clk 0:02:59.4]} 4... c5 {[%clk 0:02:59.1]} 5. c3 {[%clk 0:02:59]} 5...
Nc6 {[%clk 0:03:00]} 6. Nbd2 {[%clk 0:02:58.1]} 6... Bd6 {[%clk 0:03:00.7]} 7.
Bg3 {[%clk 0:02:55.5]} 7... O-O {[%clk 0:03:01.2]} 8. Bb5 {[%clk 0:02:54.9]}
8... Ne7 {[%clk 0:03:01.1]} 9. Bd3 {[%clk 0:02:54.4]} 9... b6 {[%clk 0:03:01.3]}
10. e4 {[%clk 0:02:52.6]} 10... dxe4 {[%clk 0:03:02.2]} 11. Nxe4 {[%clk
0:02:53.5]} 11... Nxe4 {[%clk 0:03:02.7]} 12. Bxe4 {[%clk 0:02:54.4]} 12... Nd5
{[%clk 0:03:03.5]} 13. O-O {[%clk 0:02:34.1]} 13... cxd4 {[%clk 0:02:55.7]} 14.
Qxd4 {[%clk 0:02:31.6]} 14... Bxg3 {[%clk 0:02:25.1]} 15. hxg3 {[%clk
0:02:32.5]} 15... Bb7 {[%clk 0:02:24.8]} 16. Rfd1 {[%clk 0:02:28.4]} 16... f5
{[%clk 0:02:20.7]} 17. Bxd5 {[%clk 0:02:24.3]} 17... Qxd5 {[%clk 0:02:21.6]} 18.
Qxd5 {[%clk 0:02:23.6]} 18... Bxd5 {[%clk 0:02:21.6]} 19. Ne5 {[%clk 0:02:24.4]}
19... Rfd8 {[%clk 0:02:18.7]} 20. a4 {[%clk 0:02:22.8]} 20... g5 {[%clk
0:02:15.6]} 21. Rd4 {[%clk 0:02:18.1]} 21... Bb3 {[%clk 0:02:02.9]} 22. Nf3
{[%clk 0:02:02.3]} 22... h6 {[%clk 0:01:54.1]} 23. Rxd8+ {[%clk 0:02:01.4]}
23... Rxd8 {[%clk 0:01:55]} 24. Nd4 {[%clk 0:02:02.1]} 24... Bd5 {[%clk
0:01:48]} 25. a5 {[%clk 0:02:00.3]} 25... Kg7 {[%clk 0:01:39.5]} 26. axb6 {[%clk
0:02:00.2]} 26... axb6 {[%clk 0:01:40.1]} 27. Ra6 {[%clk 0:01:59.2]} 27... Rb8
{[%clk 0:01:34.9]} 28. Ra7+ {[%clk 0:01:51.6]} 28... Kf6 {[%clk 0:01:34.4]} 29.
Rh7 {[%clk 0:01:52.1]} 29... Kg6 {[%clk 0:01:33.4]} 30. Rd7 {[%clk 0:01:52.6]}
30... Kf6 {[%clk 0:01:30.9]} 31. f3 {[%clk 0:01:48.1]} 31... b5 {[%clk
0:01:18.9]} 32. Rc7 {[%clk 0:01:43.8]} 32... Ke5 {[%clk 0:00:55.5]} 33. Rc5
{[%clk 0:01:41.7]} 33... b4 {[%clk 0:00:38]} 34. Nc6+ {[%clk 0:01:27.1]} 34...
Kd6 {[%clk 0:00:35.3]} 35. Nxb8 {[%clk 0:01:27.2]} 35... Kxc5 {[%clk 0:00:35.4]}
36. cxb4+ {[%clk 0:01:24.2]} 36... Kxb4 {[%clk 0:00:35.5]} 37. Nd7 {[%clk
0:01:23.2]} 37... Kb3 {[%clk 0:00:24]} 38. g4 {[%clk 0:01:21.6]} 38... f4 {[%clk
0:00:23.8]} 39. Ne5 {[%clk 0:01:19.9]} 39... Kxb2 {[%clk 0:00:23.9]} 40. Nf7
{[%clk 0:01:20.2]} 40... Kc3 {[%clk 0:00:23.5]} 41. Nxh6 {[%clk 0:01:20]} 41...
e5 {[%clk 0:00:23.9]} 42. Nf5 {[%clk 0:01:19.1]} 42... e4 {[%clk 0:00:20.1]} 43.
fxe4 {[%clk 0:01:16.9]} 43... Bxe4 {[%clk 0:00:21]} 44. Kf2 {[%clk 0:01:13.2]}
44... Bc2 {[%clk 0:00:19.8]} 45. Nd6 {[%clk 0:01:05.8]} 45... Bd1 {[%clk
0:00:16.1]} 46. Ne4+ {[%clk 0:01:03.4]} 46... Kd4 {[%clk 0:00:16.6]} 47. Nxg5
{[%clk 0:01:04.3]} 47... Bxg4 {[%clk 0:00:16.6]} 48. Nf7 {[%clk 0:01:00.1]}
48... Be6 {[%clk 0:00:15.8]} 49. Nd6 {[%clk 0:00:54.9]} 49... Bd5 {[%clk
0:00:16]} 50. Nf5+ {[%clk 0:00:52.8]} 50... Ke5 {[%clk 0:00:16.4]} 51. Nh4
{[%clk 0:00:53.1]} 51... Kf6 {[%clk 0:00:16.8]} 52. Nf3 {[%clk 0:00:49.6]} 52...
Kf5 {[%clk 0:00:17.3]} 53. Ne1 {[%clk 0:00:48.7]} 53... Kg4 {[%clk 0:00:17.1]}
54. Nd3 {[%clk 0:00:48.7]} 54... Ba8 {[%clk 0:00:16.7]} 55. Ne5+ {[%clk
0:00:48.1]} 55... Kf5 {[%clk 0:00:17.2]} 56. Nd7 {[%clk 0:00:48.1]} 56... Bd5
{[%clk 0:00:16.7]} 57. Nc5 {[%clk 0:00:48.5]} 57... Ke5 {[%clk 0:00:16.9]} 58.
Nd3+ {[%clk 0:00:48.9]} 58... Kf5 {[%clk 0:00:17.5]} 59. Nc1 {[%clk 0:00:46]}
59... Kg4 {[%clk 0:00:17.6]} 60. Nd3 {[%clk 0:00:39.7]} 60... Kf5 {[%clk
0:00:18.1]} 61. Ne1 {[%clk 0:00:39.3]} 61... Be4 {[%clk 0:00:18.3]} 62. Nf3
{[%clk 0:00:39.5]} 62... Kg4 {[%clk 0:00:17.9]} 63. Nh2+ {[%clk 0:00:38.7]}
63... Kh4 {[%clk 0:00:18.4]} 64. Nf1 {[%clk 0:00:38.8]} 64... Kg4 {[%clk
0:00:18.5]} 65. Kg1 {[%clk 0:00:36.6]} 65... Bd3 {[%clk 0:00:18.3]} 66. Nh2+
{[%clk 0:00:26.5]} 66... Kf5 {[%clk 0:00:18.7]} 67. Kf2 {[%clk 0:00:26.4]} 67...
Be4 {[%clk 0:00:18.9]} 68. Nf1 {[%clk 0:00:26.7]} 68... Kg4 {[%clk 0:00:19]} 69.
Nd2 {[%clk 0:00:27.1]} 69... Bd5 {[%clk 0:00:19.3]} 70. Nb1 {[%clk 0:00:25.6]}
70... Kf5 {[%clk 0:00:18.6]} 71. Nc3 {[%clk 0:00:26]} 71... Bc6 {[%clk
0:00:19.3]} 72. Kf1 {[%clk 0:00:22.4]} 72... Ke5 {[%clk 0:00:19.4]} 73. Kf2
{[%clk 0:00:20.9]} 73... Kf5 {[%clk 0:00:18.3]} 74. Ne2 {[%clk 0:00:20.8]} 74...
Kg4 {[%clk 0:00:18.5]} 75. Nd4 {[%clk 0:00:21]} 75... Bd7 {[%clk 0:00:18]} 76.
Nf3 {[%clk 0:00:19.5]} 76... Kf5 {[%clk 0:00:18.1]} 77. Ke2 {[%clk 0:00:18.8]}
77... Bb5+ {[%clk 0:00:17.4]} 78. Kf2 {[%clk 0:00:18.9]} 78... Ba6 {[%clk
0:00:17.8]} 79. Nd4+ {[%clk 0:00:19.1]} 79... Ke4 {[%clk 0:00:18.3]} 80. Nb3
{[%clk 0:00:19.4]} 80... Bc4 {[%clk 0:00:18]} 81. Nd2+ {[%clk 0:00:19.1]} 81...
Kd3 {[%clk 0:00:18.6]} 82. Nxc4 {[%clk 0:00:19.4]} 82... Kxc4 {[%clk 0:00:19.5]}
83. Kf3 {[%clk 0:00:20.2]} 83... Kd5 {[%clk 0:00:20.3]} 84. Kxf4 {[%clk
0:00:20.9]} 84... Ke6 {[%clk 0:00:21.1]} 85. Kg5 {[%clk 0:00:20.3]} 85... Ke5
{[%clk 0:00:21.2]} 86. g4 {[%clk 0:00:20.4]} 86... Ke6 {[%clk 0:00:21.7]} 87.
Kh6 {[%clk 0:00:20.8]} 87... Kf7 {[%clk 0:00:22.6]} 88. g5 {[%clk 0:00:20.8]}
88... Kf8 {[%clk 0:00:22.5]} 89. Kh7 {[%clk 0:00:21]} 1-0

[Event "Late-Titled-Tuesday-Blitz-March-05-2024"]
[Site "Chess.com"]
[Date "2024.03.05"]
[Round "7"]
[White "masterofpuppets2"]
[Black "jk13"]
[Result "1/2-1/2"]
[WhiteElo "2490"]
[BlackElo "2642"]
[TimeControl "180+1"]
[EndTime "15:16:29 PST"]
[Termination "Game drawn by repetition"]

1. d4 {[%clk 0:03:00.9]} 1... Nf6 {[%clk 0:02:55.5]} 2. c4 {[%clk 0:03:01.4]}
2... e6 {[%clk 0:02:54.9]} 3. Nc3 {[%clk 0:03:01.4]} 3... Bb4 {[%clk 0:02:55]}
4. Qc2 {[%clk 0:03:01.9]} 4... O-O {[%clk 0:02:54.8]} 5. e4 {[%clk 0:03:01.4]}
5... d5 {[%clk 0:02:54.9]} 6. e5 {[%clk 0:03:01.9]} 6... Ne4 {[%clk 0:02:54.7]}
7. Bd3 {[%clk 0:03:02.6]} 7... c5 {[%clk 0:02:55.3]} 8. Nf3 {[%clk 0:03:03.3]}
8... cxd4 {[%clk 0:02:55.9]} 9. Nxd4 {[%clk 0:03:04.2]} 9... Nd7 {[%clk
0:02:56.4]} 10. Bf4 {[%clk 0:03:04.7]} 10... Ndc5 {[%clk 0:02:56.7]} 11. O-O
{[%clk 0:03:03.1]} 11... Bxc3 {[%clk 0:02:57.3]} 12. bxc3 {[%clk 0:03:03.1]}
12... Nxd3 {[%clk 0:02:58]} 13. Qxd3 {[%clk 0:03:03]} 13... b6 {[%clk
0:02:58.9]} 14. cxd5 {[%clk 0:02:57.6]} 14... exd5 {[%clk 0:02:59.8]} 15. Rfd1
{[%clk 0:02:43.7]} 15... Bb7 {[%clk 0:02:47.6]} 16. f3 {[%clk 0:02:43.2]} 16...
Nc5 {[%clk 0:02:46.9]} 17. Qf5 {[%clk 0:02:40.5]} 17... Qc8 {[%clk 0:02:35.6]}
18. Qg5 {[%clk 0:02:23.1]} 18... Ne6 {[%clk 0:02:23.8]} 19. Nxe6 {[%clk
0:02:18.1]} 19... fxe6 {[%clk 0:02:23.8]} 20. Be3 {[%clk 0:02:05.6]} 20... Rf5
{[%clk 0:02:02.8]} 21. Qe7 {[%clk 0:02:02.4]} 21... Qc6 {[%clk 0:01:55.7]} 22.
Bd4 {[%clk 0:01:35.3]} 22... Raf8 {[%clk 0:01:46.1]} 23. a4 {[%clk 0:01:34]}
23... R5f7 {[%clk 0:01:32.4]} 24. Qa3 {[%clk 0:01:19]} 24... Qc4 {[%clk
0:01:26]} 25. a5 {[%clk 0:01:15.1]} 25... bxa5 {[%clk 0:01:08.4]} 26. Qxa5
{[%clk 0:01:13]} 26... a6 {[%clk 0:01:08.9]} 27. Rd2 {[%clk 0:00:58.7]} 27... g5
{[%clk 0:01:08]} 28. Ra4 {[%clk 0:00:55.7]} 28... Qc8 {[%clk 0:01:04.8]} 29. h3
{[%clk 0:00:51.3]} 29... h5 {[%clk 0:01:04.1]} 30. Be3 {[%clk 0:00:49.7]} 30...
Rf5 {[%clk 0:00:58.4]} 31. Qb4 {[%clk 0:00:30]} 31... Bc6 {[%clk 0:00:54.1]} 32.
Ra1 {[%clk 0:00:29.1]} 32... Bb5 {[%clk 0:00:54.4]} 33. Qd4 {[%clk 0:00:29.1]}
33... Qc4 {[%clk 0:00:45]} 34. Kh2 {[%clk 0:00:28.1]} 34... Qxd4 {[%clk
0:00:39.5]} 35. Bxd4 {[%clk 0:00:28.5]} 35... Kg7 {[%clk 0:00:33.1]} 36. Rb2
{[%clk 0:00:27.2]} 36... Kg6 {[%clk 0:00:30.8]} 37. Rb4 {[%clk 0:00:25.1]} 37...
Rf4 {[%clk 0:00:28.3]} 38. Kg3 {[%clk 0:00:25.1]} 38... Rc8 {[%clk 0:00:19.1]}
39. Ra5 {[%clk 0:00:24.2]} 39... Kf5 {[%clk 0:00:17.2]} 40. Kf2 {[%clk
0:00:20.4]} 40... g4 {[%clk 0:00:16.5]} 41. hxg4+ {[%clk 0:00:21.3]} 41... hxg4
{[%clk 0:00:16.9]} 42. Ke3 {[%clk 0:00:21.7]} 42... g3 {[%clk 0:00:16.3]} 43.
Ra1 {[%clk 0:00:19.3]} 43... Rh8 {[%clk 0:00:16.6]} 44. Rg1 {[%clk 0:00:17.6]}
44... Rh2 {[%clk 0:00:16.1]} 45. Kd2 {[%clk 0:00:17.5]} 45... Rxf3 {[%clk
0:00:16.1]} 46. Ke1 {[%clk 0:00:11.8]} 46... Rf4 {[%clk 0:00:13.4]} 47. Kd2
{[%clk 0:00:09.9]} 47... Rf2+ {[%clk 0:00:12.4]} 48. Ke3 {[%clk 0:00:06.7]}
48... Re2+ {[%clk 0:00:11.8]} 49. Kf3 {[%clk 0:00:06.6]} 49... Re4 {[%clk
0:00:08.8]} 50. Kxg3 {[%clk 0:00:06.7]} 50... Rhh4 {[%clk 0:00:09.5]} 51. Kf3
{[%clk 0:00:06.5]} 51... Rhf4+ {[%clk 0:00:09.1]} 52. Kg3 {[%clk 0:00:06.4]}
52... Rg4+ {[%clk 0:00:09.5]} 53. Kh3 {[%clk 0:00:06.7]} 53... Rg5 {[%clk
0:00:07.9]} 54. g4+ {[%clk 0:00:06.4]} 54... Kg6 {[%clk 0:00:08.2]} 55. Bf2
{[%clk 0:00:03.6]} 55... Be2 {[%clk 0:00:06.8]} 56. Bh4 {[%clk 0:00:02]} 56...
Bxg4+ {[%clk 0:00:06.3]} 57. Kh2 {[%clk 0:00:02.6]} 57... Re2+ {[%clk
0:00:06.1]} 58. Rg2 {[%clk 0:00:03.2]} 58... Rxg2+ {[%clk 0:00:06.1]} 59. Kxg2
{[%clk 0:00:04.1]} 59... Bf5+ {[%clk 0:00:03.3]} 60. Bxg5 {[%clk 0:00:04]} 60...
Kxg5 {[%clk 0:00:04.2]} 61. Kf2 {[%clk 0:00:04.3]} 61... Be4 {[%clk 0:00:04.2]}
62. Ke3 {[%clk 0:00:05.2]} 62... Kf5 {[%clk 0:00:04.6]} 63. Kd4 {[%clk
0:00:06.1]} 63... Kf4 {[%clk 0:00:04.7]} 64. Rb6 {[%clk 0:00:07]} 64... Bf5
{[%clk 0:00:05.1]} 65. Rxa6 {[%clk 0:00:07.3]} 65... Kf3 {[%clk 0:00:05.4]} 66.
Rd6 {[%clk 0:00:08]} 66... Kf4 {[%clk 0:00:05.9]} 67. c4 {[%clk 0:00:08.4]}
67... dxc4 {[%clk 0:00:05.9]} 68. Rc6 {[%clk 0:00:08.9]} 68... Bd3 {[%clk
0:00:05.6]} 69. Rxe6 {[%clk 0:00:09.5]} 69... Bf5 {[%clk 0:00:05.5]} 70. Rf6
{[%clk 0:00:09.1]} 70... c3 {[%clk 0:00:05.7]} 71. e6 {[%clk 0:00:08.9]} 71...
c2 {[%clk 0:00:05.8]} 72. e7 {[%clk 0:00:04.1]} 72... c1=Q {[%clk 0:00:05.8]}
73. Rxf5+ {[%clk 0:00:03.9]} 73... Kxf5 {[%clk 0:00:06.7]} 74. e8=Q {[%clk
0:00:04.2]} 74... Qd2+ {[%clk 0:00:05.9]} 75. Kc4 {[%clk 0:00:04.4]} 75... Qc2+
{[%clk 0:00:06]} 76. Kb4 {[%clk 0:00:04.9]} 76... Qb2+ {[%clk 0:00:06.4]} 77.
Kc4 {[%clk 0:00:05.5]} 77... Qc2+ {[%clk 0:00:06.7]} 78. Kb4 {[%clk 0:00:06.1]}
78... Qb2+ {[%clk 0:00:07.1]} 79. Kc4 {[%clk 0:00:06.7]} 79... Qa2+ {[%clk
0:00:07.7]} 80. Kb4 {[%clk 0:00:06.8]} 80... Qb2+ {[%clk 0:00:08]} 1/2-1/2